[Event "Late-Titled-Tuesday-Blitz-October-03-2023"]
[Site "Chess.com"]
[Date "2023.10.03"]
[Round "6"]
[White "koncheto"]
[Black "Qvalda"]
[Result "1-0"]
[WhiteElo "2527"]
[BlackElo "2384"]
[TimeControl "180+1"]
[EndTime "15:03:43 PDT"]
[Termination "koncheto won on time"]

1. e4 {[%clk 0:02:19.2]} 1... e6 {[%clk 0:02:58.9]} 2. d4 {[%clk 0:02:17.3]}
2... d5 {[%clk 0:02:58.8]} 3. Nd2 {[%clk 0:02:12.9]} 3... Be7 {[%clk 0:02:57.2]}
4. c3 {[%clk 0:02:11.5]} 4... c5 {[%clk 0:02:54.7]} 5. exd5 {[%clk 0:02:11.7]}
5... exd5 {[%clk 0:02:53.4]} 6. dxc5 {[%clk 0:02:09.8]} 6... Nf6 {[%clk
0:02:52.8]} 7. Ngf3 {[%clk 0:02:10.7]} 7... O-O {[%clk 0:02:52.6]} 8. Nb3 {[%clk
0:02:08.3]} 8... Re8 {[%clk 0:02:50.5]} 9. Be2 {[%clk 0:02:02.3]} 9... Nbd7
{[%clk 0:02:49.9]} 10. Be3 {[%clk 0:02:02]} 10... Ng4 {[%clk 0:02:49.5]} 11. Bd4
{[%clk 0:02:02.1]} 11... Qc7 {[%clk 0:02:30.6]} 12. h3 {[%clk 0:01:58.9]} 12...
Ngf6 {[%clk 0:02:30.2]} 13. O-O {[%clk 0:01:58.5]} 13... Nxc5 {[%clk 0:02:29.9]}
14. Re1 {[%clk 0:01:51.4]} 14... Nce4 {[%clk 0:02:27.5]} 15. Bd3 {[%clk
0:01:50.1]} 15... Bf5 {[%clk 0:02:26.1]} 16. Be5 {[%clk 0:01:47.9]} 16... Qd7
{[%clk 0:02:22.5]} 17. Nbd4 {[%clk 0:01:47.3]} 17... Bg6 {[%clk 0:02:21.9]} 18.
Bh2 {[%clk 0:01:47.3]} 18... h6 {[%clk 0:02:16.4]} 19. Bb5 {[%clk 0:01:46.6]}
19... Qd8 {[%clk 0:02:00.3]} 20. Bxe8 {[%clk 0:01:45.2]} 20... Qxe8 {[%clk
0:02:01.2]} 21. Ne5 {[%clk 0:01:44.8]} 21... Bh7 {[%clk 0:01:59.4]} 22. Ng4
{[%clk 0:01:41]} 22... Qd8 {[%clk 0:01:49.1]} 23. Nxf6+ {[%clk 0:01:37.9]} 23...
Bxf6 {[%clk 0:01:50]} 24. Qb3 {[%clk 0:01:34.7]} 24... Bxd4 {[%clk 0:01:36.8]}
25. cxd4 {[%clk 0:01:34.6]} 25... Qf6 {[%clk 0:01:37]} 26. Qe3 {[%clk
0:01:31.7]} 26... Bf5 {[%clk 0:01:21.4]} 27. Rac1 {[%clk 0:01:26.9]} 27... Qg6
{[%clk 0:01:18.7]} 28. Kh1 {[%clk 0:01:18]} 28... Kh7 {[%clk 0:01:17.8]} 29. f3
{[%clk 0:01:14.5]} 29... Nf6 {[%clk 0:01:10.2]} 30. Be5 {[%clk 0:01:04.5]} 30...
Nd7 {[%clk 0:00:52]} 31. Qb3 {[%clk 0:01:03.6]} 31... Be6 {[%clk 0:00:44.7]} 32.
Qxb7 {[%clk 0:01:01.2]} 32... Rg8 {[%clk 0:00:41.4]} 33. Rc7 {[%clk 0:00:56.7]}
33... Nb6 {[%clk 0:00:36.8]} 34. b3 {[%clk 0:00:52.1]} 34... Qh5 {[%clk
0:00:31.7]} 35. Kg1 {[%clk 0:00:34.4]} 35... Bxh3 {[%clk 0:00:27.2]} 36. Rxf7
{[%clk 0:00:34.2]} 36... Nd7 {[%clk 0:00:01.2]} 37. Rxd7 {[%clk 0:00:27.4]} 1-0

[Event "Late-Titled-Tuesday-Blitz-October-03-2023"]
[Site "Chess.com"]
[Date "2023.10.03"]
[Round "6"]
[White "NovikovaGalina"]
[Black "nitpicker"]
[Result "0-1"]
[WhiteElo "2421"]
[BlackElo "2241"]
[TimeControl "180+1"]
[EndTime "15:03:43 PDT"]
[Termination "nitpicker won by checkmate"]

1. e4 {[%clk 0:03:00.9]} 1... c5 {[%clk 0:02:59.6]} 2. Nf3 {[%clk 0:03:00.3]}
2... d6 {[%clk 0:02:59.2]} 3. d4 {[%clk 0:03:00.4]} 3... cxd4 {[%clk 0:02:59.5]}
4. Nxd4 {[%clk 0:03:01.3]} 4... Nf6 {[%clk 0:02:59.7]} 5. Nc3 {[%clk 0:03:01]}
5... Nc6 {[%clk 0:03:00.2]} 6. Bg5 {[%clk 0:02:58.6]} 6... Qb6 {[%clk
0:03:00.1]} 7. Nb3 {[%clk 0:02:52.7]} 7... e6 {[%clk 0:02:59.7]} 8. Qd2 {[%clk
0:02:45.9]} 8... a6 {[%clk 0:02:57.8]} 9. O-O-O {[%clk 0:02:35.7]} 9... Qc7
{[%clk 0:02:54]} 10. f4 {[%clk 0:02:31.7]} 10... Be7 {[%clk 0:02:50]} 11. Bd3
{[%clk 0:02:26.2]} 11... b5 {[%clk 0:02:44.9]} 12. Rhe1 {[%clk 0:02:00]} 12...
h6 {[%clk 0:02:42.3]} 13. Bh4 {[%clk 0:01:56.3]} 13... Nxe4 {[%clk 0:02:32]} 14.
Nxe4 {[%clk 0:01:47]} 14... Bxh4 {[%clk 0:02:31.1]} 15. g3 {[%clk 0:01:46.5]}
15... Be7 {[%clk 0:02:31.6]} 16. Bf1 {[%clk 0:01:34.3]} 16... d5 {[%clk
0:02:24.5]} 17. Nec5 {[%clk 0:01:32.9]} 17... O-O {[%clk 0:01:46.4]} 18. f5
{[%clk 0:01:32.8]} 18... Bg5 {[%clk 0:01:44.4]} 19. Re3 {[%clk 0:01:32.2]} 19...
Rd8 {[%clk 0:00:59.8]} 20. h4 {[%clk 0:01:28.8]} 20... Bxe3 {[%clk 0:00:58.4]}
21. Qxe3 {[%clk 0:01:29.7]} 21... Qe5 {[%clk 0:00:46]} 22. Qd2 {[%clk
0:01:21.4]} 22... Qxf5 {[%clk 0:00:44.1]} 23. Bd3 {[%clk 0:01:22]} 23... Qf6
{[%clk 0:00:41]} 24. Rf1 {[%clk 0:01:13.1]} 24... Qe7 {[%clk 0:00:37.5]} 25. g4
{[%clk 0:01:11.3]} 25... a5 {[%clk 0:00:37.7]} 26. a4 {[%clk 0:01:09.1]} 26...
bxa4 {[%clk 0:00:35]} 27. Nxa4 {[%clk 0:01:10]} 27... Nb4 {[%clk 0:00:31]} 28.
g5 {[%clk 0:01:10.2]} 28... Nxd3+ {[%clk 0:00:28.1]} 29. cxd3 {[%clk 0:01:08.9]}
29... hxg5 {[%clk 0:00:20.2]} 30. hxg5 {[%clk 0:01:09.8]} 30... e5 {[%clk
0:00:20.5]} 31. g6 {[%clk 0:01:06.8]} 31... fxg6 {[%clk 0:00:18.4]} 32. Rh1
{[%clk 0:01:05.3]} 32... Bf5 {[%clk 0:00:18.4]} 33. Qh2 {[%clk 0:01:04.8]} 33...
Rac8+ {[%clk 0:00:17.7]} 34. Kb1 {[%clk 0:01:04.5]} 34... Qb4 {[%clk 0:00:17.4]}
35. Nac5 {[%clk 0:00:39.2]} 35... a4 {[%clk 0:00:13.2]} 36. Qxe5 {[%clk
0:00:34.7]} 36... axb3 {[%clk 0:00:12.5]} 37. Ne6 {[%clk 0:00:25.3]} 37... Bxd3+
{[%clk 0:00:10.7]} 38. Ka1 {[%clk 0:00:24.9]} 38... Qa4# {[%clk 0:00:11]} 0-1

[Event "Late-Titled-Tuesday-Blitz-October-03-2023"]
[Site "Chess.com"]
[Date "2023.10.03"]
[Round "6"]
[White "dropstoneDP"]
[Black "Inepton_Fermion"]
[Result "1-0"]
[WhiteElo "3067"]
[BlackElo "2422"]
[TimeControl "180+1"]
[EndTime "15:03:49 PDT"]
[Termination "dropstoneDP won on time"]

1. e4 {[%clk 0:02:58.9]} 1... c5 {[%clk 0:02:59.9]} 2. Nf3 {[%clk 0:02:59]} 2...
e6 {[%clk 0:03:00.2]} 3. d4 {[%clk 0:02:59.5]} 3... cxd4 {[%clk 0:03:01.1]} 4.
Nxd4 {[%clk 0:03:00.4]} 4... Nc6 {[%clk 0:03:01.7]} 5. Nc3 {[%clk 0:03:00.9]}
5... Qc7 {[%clk 0:03:01.6]} 6. Be3 {[%clk 0:03:00.7]} 6... a6 {[%clk 0:03:01.9]}
7. g4 {[%clk 0:03:00.6]} 7... Nxd4 {[%clk 0:02:56.5]} 8. Qxd4 {[%clk 0:02:59.6]}
8... b5 {[%clk 0:02:57.1]} 9. O-O-O {[%clk 0:02:57]} 9... Bb7 {[%clk 0:02:49.7]}
10. Bg2 {[%clk 0:02:57.5]} 10... Rc8 {[%clk 0:02:49.8]} 11. Rd2 {[%clk
0:02:46.6]} 11... Ne7 {[%clk 0:02:27]} 12. Rhd1 {[%clk 0:02:44.2]} 12... d6
{[%clk 0:01:56.2]} 13. Qxd6 {[%clk 0:02:38.1]} 13... Qxd6 {[%clk 0:01:50.7]} 14.
Rxd6 {[%clk 0:02:39]} 14... Nd5 {[%clk 0:01:38.9]} 15. exd5 {[%clk 0:02:31.5]}
15... Bxd6 {[%clk 0:01:38.4]} 16. Ne4 {[%clk 0:02:18.8]} 16... Bb8 {[%clk
0:01:20.8]} 17. dxe6 {[%clk 0:02:10.1]} 17... fxe6 {[%clk 0:01:17.5]} 18. Nf6+
{[%clk 0:01:43.7]} 18... gxf6 {[%clk 0:01:17.4]} 19. Bxb7 {[%clk 0:01:44.6]}
19... Rd8 {[%clk 0:01:09]} 20. Bxa6 {[%clk 0:01:44.6]} 20... Rxd1+ {[%clk
0:01:08.2]} 21. Kxd1 {[%clk 0:01:45.5]} 21... Bxh2 {[%clk 0:01:06.3]} 22. Bxb5+
{[%clk 0:01:44.7]} 22... Kf7 {[%clk 0:01:05.4]} 23. a4 {[%clk 0:01:45.2]} 23...
f5 {[%clk 0:00:57]} 24. gxf5 {[%clk 0:01:42.6]} 24... exf5 {[%clk 0:00:57.9]}
25. a5 {[%clk 0:01:43]} 25... h5 {[%clk 0:00:50.3]} 26. a6 {[%clk 0:01:40.8]}
26... Bb8 {[%clk 0:00:30.6]} 27. a7 {[%clk 0:01:38]} 27... Bxa7 {[%clk
0:00:31.1]} 28. Bxa7 {[%clk 0:01:38.5]} 28... h4 {[%clk 0:00:31.2]} 29. Bc6
{[%clk 0:01:38.1]} 29... h3 {[%clk 0:00:29]} 30. Bd4 {[%clk 0:01:16]} 30... Rh4
{[%clk 0:00:20.5]} 31. Be5 {[%clk 0:01:03.1]} 31... Ke6 {[%clk 0:00:15.7]} 32.
Bh2 {[%clk 0:01:01.1]} 32... f4 {[%clk 0:00:11.2]} 33. Ke2 {[%clk 0:00:59.4]}
33... Kf5 {[%clk 0:00:09.6]} 34. Kf3 {[%clk 0:00:59.3]} 34... Rh6 {[%clk
0:00:08.4]} 35. Be4+ {[%clk 0:00:58.1]} 35... Kf6 {[%clk 0:00:04.3]} 36. Kg4
{[%clk 0:00:56.2]} 36... Rh8 {[%clk 0:00:03.2]} 37. Bf3 {[%clk 0:00:50]} 37...
Rg8+ {[%clk 0:00:02.9]} 38. Kxf4 {[%clk 0:00:50]} 38... Rc8 {[%clk 0:00:02.6]}
39. c3 {[%clk 0:00:49.7]} 39... Rc4+ {[%clk 0:00:02.8]} 40. Kg3 {[%clk
0:00:49.4]} 40... Ra4 {[%clk 0:00:02.3]} 41. Kxh3 {[%clk 0:00:49.4]} 41... Ra2
{[%clk 0:00:02.5]} 42. Bf4 {[%clk 0:00:43.9]} 42... Rxb2 {[%clk 0:00:02.6]} 43.
Be3 {[%clk 0:00:44.5]} 43... Ke7 {[%clk 0:00:02.2]} 44. Kg3 {[%clk 0:00:44.3]}
44... Rc2 {[%clk 0:00:02.4]} 45. Bd4 {[%clk 0:00:44.8]} 45... Ra2 {[%clk
0:00:01.4]} 46. Be4 {[%clk 0:00:45.2]} 1-0

[Event "Late-Titled-Tuesday-Blitz-October-03-2023"]
[Site "Chess.com"]
[Date "2023.10.03"]
[Round "6"]
[White "Rodalquilar"]
[Black "Maestro1986"]
[Result "1-0"]
[WhiteElo "2733"]
[BlackElo "2552"]
[TimeControl "180+1"]
[EndTime "15:03:49 PDT"]
[Termination "Rodalquilar won by resignation"]

1. d4 {[%clk 0:03:00.9]} 1... Nf6 {[%clk 0:02:58.1]} 2. Nf3 {[%clk 0:03:01.3]}
2... g6 {[%clk 0:02:57.7]} 3. Bf4 {[%clk 0:03:01.5]} 3... Bg7 {[%clk 0:02:57.9]}
4. e3 {[%clk 0:03:02.1]} 4... O-O {[%clk 0:02:57.9]} 5. Be2 {[%clk 0:03:02.7]}
5... d6 {[%clk 0:02:57.7]} 6. O-O {[%clk 0:03:03]} 6... Nbd7 {[%clk 0:02:56.1]}
7. h3 {[%clk 0:03:03.1]} 7... Qe8 {[%clk 0:02:56.4]} 8. c4 {[%clk 0:03:02.2]}
8... e5 {[%clk 0:02:56.5]} 9. Bh2 {[%clk 0:03:02.8]} 9... e4 {[%clk 0:02:56.4]}
10. Nfd2 {[%clk 0:03:02.5]} 10... Qe7 {[%clk 0:02:46]} 11. Nc3 {[%clk
0:03:02.6]} 11... c6 {[%clk 0:02:46.2]} 12. b4 {[%clk 0:02:55.4]} 12... Re8
{[%clk 0:02:44.7]} 13. c5 {[%clk 0:02:54]} 13... d5 {[%clk 0:02:42.3]} 14. b5
{[%clk 0:02:54.3]} 14... Nf8 {[%clk 0:02:40.5]} 15. a4 {[%clk 0:02:50.6]} 15...
Be6 {[%clk 0:02:35.3]} 16. a5 {[%clk 0:02:49.9]} 16... cxb5 {[%clk 0:02:22.9]}
17. Nxb5 {[%clk 0:02:47.8]} 17... Red8 {[%clk 0:02:00.5]} 18. Bd6 {[%clk
0:02:11.8]} 18... Qd7 {[%clk 0:01:36.8]} 19. Nc7 {[%clk 0:02:12]} 19... Bxh3
{[%clk 0:01:36.1]} 20. Nxa8 {[%clk 0:02:11.7]} 20... Rxa8 {[%clk 0:01:22.8]} 21.
gxh3 {[%clk 0:02:11.7]} 21... Qxh3 {[%clk 0:01:22.5]} 22. f3 {[%clk 0:02:11.3]}
22... Bh6 {[%clk 0:01:17.5]} 23. Ra3 {[%clk 0:02:07.5]} 23... Ne6 {[%clk
0:01:08]} 24. Rf2 {[%clk 0:02:03.8]} 24... Bg5 {[%clk 0:00:35.7]} 25. Qf1 {[%clk
0:01:54.9]} 25... Qh6 {[%clk 0:00:24.1]} 26. fxe4 {[%clk 0:01:47.1]} 26... Bxe3
{[%clk 0:00:21]} 27. Kg2 {[%clk 0:01:09]} 27... Bxf2 {[%clk 0:00:18.2]} 28. Qxf2
{[%clk 0:01:09.2]} 28... Nxe4 {[%clk 0:00:17]} 29. Nxe4 {[%clk 0:01:08.5]} 29...
dxe4 {[%clk 0:00:17.9]} 30. Be5 {[%clk 0:01:04.5]} 30... Ng5 {[%clk 0:00:13.1]}
31. Qf6 {[%clk 0:00:58]} 31... Kf8 {[%clk 0:00:07.8]} 32. Qh8+ {[%clk 0:00:56]}
32... Ke7 {[%clk 0:00:08.3]} 33. Qxa8 {[%clk 0:00:56.1]} 33... Nf3 {[%clk
0:00:07.6]} 34. Qxb7+ {[%clk 0:00:54]} 34... Ke6 {[%clk 0:00:08]} 35. Bc4+
{[%clk 0:00:49.3]} 35... Kf5 {[%clk 0:00:07.8]} 36. Qxf7+ {[%clk 0:00:49.5]}
36... Kg4 {[%clk 0:00:08.4]} 37. Be6+ {[%clk 0:00:44.9]} 37... Kh4 {[%clk
0:00:08.7]} 38. Qf4+ {[%clk 0:00:38.3]} 38... Qxf4 {[%clk 0:00:07.3]} 39. Bxf4
{[%clk 0:00:38.7]} 39... g5 {[%clk 0:00:08.1]} 40. Bg3+ {[%clk 0:00:37]} 40...
Kh5 {[%clk 0:00:07.8]} 41. Rxf3 {[%clk 0:00:37.1]} 1-0

[Event "Late-Titled-Tuesday-Blitz-October-03-2023"]
[Site "Chess.com"]
[Date "2023.10.03"]
[Round "6"]
[White "Arteler"]
[Black "alfianasybullina"]
[Result "1-0"]
[WhiteElo "2619"]
[BlackElo "2406"]
[TimeControl "180+1"]
[EndTime "15:03:51 PDT"]
[Termination "Arteler won by checkmate"]

1. e4 {[%clk 0:02:46.6]} 1... c6 {[%clk 0:02:54.8]} 2. Nc3 {[%clk 0:02:45.2]}
2... d5 {[%clk 0:02:54.5]} 3. Qf3 {[%clk 0:02:45.2]} 3... dxe4 {[%clk
0:02:50.2]} 4. Nxe4 {[%clk 0:02:43.5]} 4... Nf6 {[%clk 0:02:49.7]} 5. Bc4 {[%clk
0:02:38.7]} 5... Nbd7 {[%clk 0:02:40.6]} 6. d4 {[%clk 0:02:38.2]} 6... e6 {[%clk
0:02:36.2]} 7. Ne2 {[%clk 0:02:28.6]} 7... Nxe4 {[%clk 0:02:31.8]} 8. Qxe4
{[%clk 0:02:27.2]} 8... Nf6 {[%clk 0:02:30]} 9. Qh4 {[%clk 0:02:21.8]} 9... c5
{[%clk 0:02:22.4]} 10. Bg5 {[%clk 0:02:03]} 10... Be7 {[%clk 0:02:14.2]} 11. O-O
{[%clk 0:01:52]} 11... Qb6 {[%clk 0:02:09.4]} 12. dxc5 {[%clk 0:01:41.5]} 12...
Qxc5 {[%clk 0:02:06.8]} 13. Bd3 {[%clk 0:01:31.2]} 13... Bd7 {[%clk 0:02:02.2]}
14. Rfd1 {[%clk 0:01:16]} 14... Bc6 {[%clk 0:02:00]} 15. Nd4 {[%clk 0:01:14.8]}
15... h6 {[%clk 0:01:45.5]} 16. Be3 {[%clk 0:01:03.7]} 16... Nd5 {[%clk
0:01:35.9]} 17. Nxc6 {[%clk 0:00:35.5]} 17... Nxe3 {[%clk 0:01:13.5]} 18. Nxe7
{[%clk 0:00:33.7]} 18... Nxd1 {[%clk 0:01:05.3]} 19. Ng6 {[%clk 0:00:30.9]}
19... fxg6 {[%clk 0:00:51.7]} 20. Bxg6+ {[%clk 0:00:31]} 20... Kd7 {[%clk
0:00:45.6]} 21. Rxd1+ {[%clk 0:00:31.9]} 21... Kc8 {[%clk 0:00:41]} 22. Rd3
{[%clk 0:00:25.9]} 22... Qe5 {[%clk 0:00:29]} 23. Qc4+ {[%clk 0:00:21]} 23...
Kb8 {[%clk 0:00:24.9]} 24. g3 {[%clk 0:00:17.4]} 24... b5 {[%clk 0:00:24.5]} 25.
Qc6 {[%clk 0:00:16.8]} 25... Qc7 {[%clk 0:00:22]} 26. Qxb5+ {[%clk 0:00:15.4]}
26... Qb6 {[%clk 0:00:22]} 27. Qe5+ {[%clk 0:00:15.6]} 27... Kb7 {[%clk
0:00:20.2]} 28. Rb3 {[%clk 0:00:15.5]} 28... Rad8 {[%clk 0:00:18.5]} 29. Be4+
{[%clk 0:00:12.3]} 29... Kc8 {[%clk 0:00:17.3]} 30. Rxb6 {[%clk 0:00:09.9]}
30... axb6 {[%clk 0:00:16.6]} 31. Qxe6+ {[%clk 0:00:10]} 31... Kb8 {[%clk
0:00:15.9]} 32. Qxb6+ {[%clk 0:00:10.2]} 32... Kc8 {[%clk 0:00:16.5]} 33. Qb7#
{[%clk 0:00:10.7]} 1-0

[Event "Late-Titled-Tuesday-Blitz-October-03-2023"]
[Site "Chess.com"]
[Date "2023.10.03"]
[Round "6"]
[White "NMZanette"]
[Black "campochess"]
[Result "1-0"]
[WhiteElo "2308"]
[BlackElo "2143"]
[TimeControl "180+1"]
[EndTime "15:03:53 PDT"]
[Termination "NMZanette won on time"]

1. e4 {[%clk 0:03:00.9]} 1... c5 {[%clk 0:02:59.9]} 2. Nc3 {[%clk 0:02:58.4]}
2... Nc6 {[%clk 0:02:59.7]} 3. f4 {[%clk 0:02:57.6]} 3... e6 {[%clk 0:02:59]} 4.
Nf3 {[%clk 0:02:55.3]} 4... Nf6 {[%clk 0:02:59]} 5. e5 {[%clk 0:02:46.9]} 5...
Ng4 {[%clk 0:02:58]} 6. h3 {[%clk 0:02:40.8]} 6... Nh6 {[%clk 0:02:57.1]} 7. g4
{[%clk 0:02:35.2]} 7... d5 {[%clk 0:02:52.1]} 8. Bg2 {[%clk 0:02:30.1]} 8... Be7
{[%clk 0:02:47.3]} 9. O-O {[%clk 0:02:29.2]} 9... f5 {[%clk 0:02:45.9]} 10. g5
{[%clk 0:02:25.9]} 10... Nf7 {[%clk 0:02:45.7]} 11. Ne2 {[%clk 0:02:18.2]} 11...
d4 {[%clk 0:02:42.5]} 12. d3 {[%clk 0:02:17]} 12... g6 {[%clk 0:02:40.8]} 13. c3
{[%clk 0:02:06]} 13... dxc3 {[%clk 0:02:38]} 14. bxc3 {[%clk 0:02:05.1]} 14...
h6 {[%clk 0:02:38.1]} 15. h4 {[%clk 0:02:03]} 15... hxg5 {[%clk 0:02:38]} 16.
hxg5 {[%clk 0:02:03.2]} 16... Bd7 {[%clk 0:02:30.4]} 17. Rb1 {[%clk 0:02:00.5]}
17... Rb8 {[%clk 0:02:15.7]} 18. Be3 {[%clk 0:01:57]} 18... Qa5 {[%clk
0:02:13.9]} 19. Qc2 {[%clk 0:01:47.1]} 19... b5 {[%clk 0:02:13.3]} 20. Rfd1
{[%clk 0:01:32.2]} 20... b4 {[%clk 0:02:05.2]} 21. c4 {[%clk 0:01:28.4]} 21...
Qc7 {[%clk 0:01:50.1]} 22. Kf2 {[%clk 0:01:00.8]} 22... Nfxe5 {[%clk 0:01:11]}
23. fxe5 {[%clk 0:00:57.6]} 23... Nxe5 {[%clk 0:01:10.9]} 24. Nxe5 {[%clk
0:00:56.6]} 24... Qxe5 {[%clk 0:01:04]} 25. Bf4 {[%clk 0:00:56.1]} 25... Qg7
{[%clk 0:00:48.5]} 26. Bxb8 {[%clk 0:00:54.1]} 26... Bxg5 {[%clk 0:00:48.1]} 27.
Qb2 {[%clk 0:00:39.9]} 27... Bf6 {[%clk 0:00:44.5]} 28. d4 {[%clk 0:00:34.9]}
28... Qh6 {[%clk 0:00:27.6]} 29. Qb3 {[%clk 0:00:30.9]} 29... Bh4+ {[%clk
0:00:24.4]} 30. Bg3 {[%clk 0:00:30.7]} 30... Qg5 {[%clk 0:00:18.8]} 31. Qf3
{[%clk 0:00:26.9]} 31... Bxg3+ {[%clk 0:00:10.5]} 32. Qxg3 {[%clk 0:00:26.8]}
32... Qe7 {[%clk 0:00:10.4]} 33. dxc5 {[%clk 0:00:24.4]} 33... Qf7 {[%clk
0:00:09.8]} 34. Qe5 {[%clk 0:00:23.8]} 34... Rh4 {[%clk 0:00:07.5]} 35. c6
{[%clk 0:00:23.8]} 35... Bc8 {[%clk 0:00:06.9]} 36. Rd4 {[%clk 0:00:21.7]} 36...
Rh5 {[%clk 0:00:05.3]} 37. Rbd1 {[%clk 0:00:20.7]} 1-0

[Event "Late-Titled-Tuesday-Blitz-October-03-2023"]
[Site "Chess.com"]
[Date "2023.10.03"]
[Round "6"]
[White "Zq1"]
[Black "DucksParadise"]
[Result "1-0"]
[WhiteElo "2533"]
[BlackElo "2640"]
[TimeControl "180+1"]
[EndTime "15:03:54 PDT"]
[Termination "Zq1 won by resignation"]

1. d4 {[%clk 0:03:00.9]} 1... Nf6 {[%clk 0:02:58.5]} 2. c4 {[%clk 0:03:00.8]}
2... e6 {[%clk 0:02:58.5]} 3. Nf3 {[%clk 0:02:59.8]} 3... d5 {[%clk 0:02:55.5]}
4. e3 {[%clk 0:02:58.7]} 4... c5 {[%clk 0:02:46.7]} 5. Nc3 {[%clk 0:02:57.4]}
5... a6 {[%clk 0:02:46.6]} 6. a3 {[%clk 0:02:56.8]} 6... Nc6 {[%clk 0:02:42.4]}
7. dxc5 {[%clk 0:02:55.1]} 7... Bxc5 {[%clk 0:02:43.3]} 8. b4 {[%clk 0:02:54.8]}
8... Ba7 {[%clk 0:02:42.8]} 9. Bb2 {[%clk 0:02:54.8]} 9... O-O {[%clk
0:02:41.1]} 10. Be2 {[%clk 0:02:52.1]} 10... dxc4 {[%clk 0:02:40.9]} 11. Bxc4
{[%clk 0:02:49.2]} 11... b5 {[%clk 0:02:40.5]} 12. Bd3 {[%clk 0:02:40.6]} 12...
Bb7 {[%clk 0:02:33.9]} 13. Ne4 {[%clk 0:02:36.2]} 13... Nxe4 {[%clk 0:02:23.3]}
14. Bxe4 {[%clk 0:02:35.6]} 14... Qe7 {[%clk 0:01:54.1]} 15. O-O {[%clk
0:02:33.2]} 15... Rfd8 {[%clk 0:01:53.8]} 16. Qe2 {[%clk 0:02:14]} 16... h6
{[%clk 0:01:46.5]} 17. Rac1 {[%clk 0:02:08.1]} 17... Rac8 {[%clk 0:01:44.6]} 18.
h3 {[%clk 0:02:05.7]} 18... Na5 {[%clk 0:01:36.7]} 19. Bxb7 {[%clk 0:01:54.3]}
19... Nxb7 {[%clk 0:01:37.6]} 20. Ne5 {[%clk 0:01:41]} 20... Nd6 {[%clk
0:01:33.8]} 21. Nc6 {[%clk 0:01:38.6]} 21... Rxc6 {[%clk 0:01:31.3]} 22. Rxc6
{[%clk 0:01:38]} 22... Nc4 {[%clk 0:01:31.8]} 23. Bd4 {[%clk 0:01:12]} 23...
Bxd4 {[%clk 0:01:25.6]} 24. exd4 {[%clk 0:01:10.5]} 24... Qb7 {[%clk 0:01:13.8]}
25. Rc5 {[%clk 0:01:03.8]} 25... Rxd4 {[%clk 0:01:13.2]} 26. Rd1 {[%clk
0:01:00.6]} 26... Qd7 {[%clk 0:01:06.1]} 27. Rxd4 {[%clk 0:01:00.3]} 27... Qxd4
{[%clk 0:01:07]} 28. Rc8+ {[%clk 0:00:52.5]} 28... Kh7 {[%clk 0:01:05.7]} 29.
Qc2+ {[%clk 0:00:52]} 29... f5 {[%clk 0:01:01.6]} 30. Qe2 {[%clk 0:00:50.3]}
30... Nd2 {[%clk 0:00:42.5]} 31. Rc1 {[%clk 0:00:45.1]} 31... Ne4 {[%clk
0:00:39.9]} 32. Qe3 {[%clk 0:00:39.8]} 32... Qb2 {[%clk 0:00:37.6]} 33. Rd1
{[%clk 0:00:38.1]} 33... Nc3 {[%clk 0:00:36.1]} 34. Rd7 {[%clk 0:00:32.4]} 34...
Qa1+ {[%clk 0:00:31.9]} 35. Kh2 {[%clk 0:00:30.8]} 35... Ne4 {[%clk 0:00:30.8]}
36. Qd4 {[%clk 0:00:29.2]} 36... Qxd4 {[%clk 0:00:30.6]} 37. Rxd4 {[%clk
0:00:28.5]} 37... Nxf2 {[%clk 0:00:31]} 38. Rd6 {[%clk 0:00:27.5]} 38... e5
{[%clk 0:00:31]} 39. Rxa6 {[%clk 0:00:26.6]} 39... f4 {[%clk 0:00:25.9]} 40. a4
{[%clk 0:00:24.6]} 40... bxa4 {[%clk 0:00:24.7]} 41. b5 {[%clk 0:00:24.8]} 41...
Nd3 {[%clk 0:00:24.8]} 42. Rxa4 {[%clk 0:00:24.3]} 42... Nc5 {[%clk 0:00:25]}
43. Rc4 {[%clk 0:00:23.9]} 43... Nb7 {[%clk 0:00:24.5]} 44. b6 {[%clk
0:00:22.6]} 44... Kg6 {[%clk 0:00:19.3]} 45. Rc7 {[%clk 0:00:22.4]} 45... Na5
{[%clk 0:00:19.3]} 46. b7 {[%clk 0:00:22.2]} 46... Nxb7 {[%clk 0:00:19.1]} 47.
Rxb7 {[%clk 0:00:22.4]} 47... e4 {[%clk 0:00:19.5]} 48. Re7 {[%clk 0:00:20.9]}
1-0